bitfinex-derivatives/quotes_ETHF0:USTF0_20251031
["timestamp","ask_amount","ask_price","bid_price","bid_amount"]
[1761900388608,0.93559497,3841.4,3841.1,0.3252]
[1761900388913,10.51605915,3841.3,3841.1,0.3252]
[1761900389102,0.0813917,3841.2,3841.1,0.3252]
[1761900389407,1.01652887,3841.2,3841.1,0.3252]
[1761900390008,0.0813917,3841.2,3841.1,0.3252]
[1761900390309,1.01609471,3841.2,3841.1,0.3252]
[1761900391308,0.0813917,3841.2,3841.1,0.3252]
[1761900391810,0.0813917,3841.2,3840.8,0.3252]
[1761900392507,0.0813917,3841.2,3840.6,3.21047743]
[1761900393104,0.93470301,3840.8,3840.1,0.3252]
[1761900393303,3.2078,3840.5,3840.1,0.3252]
[1761900393506,0.0813917,3840.4,3840.1,0.3252]
[1761900393701,9.032,3840.3,3840.1,0.3252]
[1761900393908,0.0813917,3840.2,3840.1,0.3252]
[1761900394310,0.0813917,3840.2,3840.1,0.32789309]
[1761900394514,9.032,3840.3,3840.1,0.32789309]
[1761900395008,0.0814517,3840.2,3840.1,0.32789309]
[1761900395404,9.032,3840.3,3840.1,0.32789309]
[1761900395808,0.08145403,3840.2,3840.1,0.00269309]
[1761900397315,9.032,3840.3,3840.1,0.00269309]
[1761900398818,0.08145746,3840.2,3840.1,0.00269309]
[1761900400318,9.032,3840.3,3840.1,0.00269309]
[1761900400914,17.032,3840.3,3840.1,0.00269309]
[1761900401114,9.035,3840.2,3840.1,0.00269309]
[1761900401817,9.035,3840.2,3840.1,0.32719309]
[1761900402017,9.035,3840.2,3840.1,0.00269309]
[1761900402310,8.0,3840.3,3840.1,0.00269309]
[1761900402712,9.035,3840.2,3840.1,0.00269309]
[1761900406419,0.93013637,3840.8,3840.7,0.5611]
[1761900406614,12.2438,3840.8,3840.7,0.3245]
[1761900407319,3.2078,3840.8,3840.7,0.5611]
[1761900407523,8.7868,3840.8,3840.7,0.7984]
[1761900407820,12.2438,3840.8,3840.7,0.7984]
[1761900408123,3.2078,3840.8,3840.7,0.7984]
[1761900408318,12.2438,3840.8,3840.7,0.7984]
[1761900409816,3.2078,3840.8,3840.7,0.7984]
[1761900410022,8.6458,3840.8,3840.7,0.7984]
[1761900412525,3.2078,3840.8,3840.7,0.7984]
[1761900412719,12.2438,3840.8,3840.7,0.7984]
[1761900412918,12.2438,3840.8,3840.7,0.5611]
[1761900414426,12.32523736,3840.8,3840.7,0.5611]
[1761900414625,12.32523736,3840.8,3840.7,0.3245]
[1761900414820,12.32523736,3840.8,3840.7,0.5611]
[1761900415021,3.2078,3840.8,3840.7,0.7984]
[1761900415223,3.2078,3841.5,3841.4,0.5611]
[1761900415528,13.25536498,3841.5,3841.4,0.5611]
[1761900416632,13.25436498,3841.5,3841.4,0.5611]
[1761900417130,13.25436498,3841.5,3841.4,0.3245]
[1761900417330,12.32422861,3841.5,3841.4,0.3245]
[1761900418032,3.28922861,3841.5,3841.4,0.3245]
[1761900418233,12.32422861,3841.5,3841.4,0.3245]
[1761900419933,12.2428,3841.5,3841.4,0.3245]
[1761900420132,12.32422824,3841.5,3841.4,0.3245]
[1761900420836,13.7194328,3841.5,3841.4,0.3245]
[1761900421036,12.32422824,3841.5,3841.4,0.3245]
[1761900422637,13.7194328,3841.5,3841.4,0.3245]
[1761900423028,13.7194328,3841.5,3841.0,0.1388]
[1761900423029,13.7194328,3841.5,3841.0,0.4633]
[1761900423232,3.2078,3841.1,3840.6,0.3245]
[1761900423437,0.93387102,3840.9,3840.7,0.3245]
[1761900423637,0.08143871,3840.8,3840.7,0.3245]
[1761900424939,0.08143871,3840.8,3840.5,0.3245]
[1761900425140,4.14167102,3840.6,3840.2,0.3245]
[1761900425342,0.08143871,3840.5,3840.2,0.3245]
[1761900425532,9.96787102,3840.4,3840.2,0.3245]
[1761900425737,1.01530973,3840.3,3840.2,0.3245]
[1761900426140,1.01530973,3840.3,3840.2,0.5611]
[1761900427850,1.01530973,3840.3,3840.2,0.3245]
[1761900429151,0.08143871,3840.3,3840.1,0.00269309]
[1761900429349,4.14201637,3840.2,3840.1,0.32719309]
[1761900429549,4.22345508,3840.2,3840.1,0.32719309]
[1761900432053,1.01565508,3840.2,3840.1,0.32719309]
[1761900432246,4.22345508,3840.2,3840.1,0.32719309]
[1761900432452,3.28923871,3840.2,3840.1,0.00269309]
[1761900432652,4.68444327,3840.2,3840.1,0.00269309]
[1761900433651,3.28923871,3840.2,3840.1,0.00269309]
[1761900435451,3.28923871,3840.2,3840.1,0.34029309]
[1761900435753,12.03723871,3840.2,3840.1,0.77929309]
[1761900436351,13.43912821,3840.2,3840.1,0.77929309]
[1761900436554,12.03723871,3840.2,3840.1,0.56119309]
[1761900436745,12.03723871,3840.2,3840.1,0.34029309]
[1761900437150,12.32523871,3840.2,3840.1,0.34029309]
[1761900437350,13.72700842,3840.2,3840.1,0.34029309]
[1761900437551,12.32523871,3840.2,3840.1,0.34029309]
[1761900438356,13.72684874,3840.2,3840.1,0.34029309]
[1761900438756,13.72686955,3840.2,3840.1,0.34029309]
[1761900439157,12.32525952,3840.2,3840.1,0.34029309]
[1761900439357,12.32525952,3840.2,3840.1,0.00269309]
[1761900439759,12.32525952,3840.2,3839.3,0.3563]
[1761900439954,3.2078,3839.5,3839.3,0.3563]
[1761900440153,9.11745952,3839.4,3839.3,0.3563]
[1761900440459,9.11745952,3839.4,3839.3,0.5929]
[1761900440857,9.11965966,3839.4,3839.3,0.59604923]
[1761900442459,9.03820014,3839.4,3839.3,0.59604923]
[1761900443857,9.11966942,3839.4,3839.3,0.35944923]
[1761900445462,9.11966942,3839.4,3839.3,0.59604923]
[1761900445651,9.11966942,3839.4,3839.3,0.81974923]
[1761900446058,9.11966942,3839.4,3839.3,0.35944923]
[1761900446760,9.11966942,3839.4,3839.3,0.81974923]
[1761900446955,0.08366942,3839.4,3839.3,0.81974923]
[1761900447154,9.12066942,3839.4,3839.3,0.81974923]
[1761900451464,10.05496546,3839.4,3839.3,0.81974923]
[1761900451664,10.05496546,3839.4,3839.3,0.59604923]
[1761900451865,10.05496546,3839.4,3839.3,0.35944923]
[1761900452565,10.05496546,3839.4,3839.3,0.59604923]
[1761900452765,1.01796546,3839.4,3839.3,0.59604923]
[1761900452965,10.05496546,3839.4,3839.3,0.59604923]
[1761900453366,9.12066942,3839.4,3839.3,0.59604923]
[1761900454269,9.12066942,3839.4,3839.3,0.35944923]
[1761900454761,10.52211348,3839.4,3839.3,0.35944923]
[1761900456067,1.48511348,3839.4,3839.3,0.81974923]
[1761900456267,10.52211348,3839.4,3839.3,0.81974923]
[1761900457564,1.48511348,3839.4,3839.3,0.81974923]
[1761900457871,9.12066942,3839.4,3839.3,8.81974923]
[1761900458871,0.08366942,3839.4,3839.3,0.81974923]
[1761900459071,7.54866942,3839.4,3839.3,0.81974923]
[1761900463677,0.08366942,3839.4,3839.3,8.81974923]
[1761900463877,0.93611555,3840.0,3839.9,0.8015]
[1761900464074,0.08144997,3840.0,3839.9,3.6631]
[1761900464272,0.93611555,3840.5,3840.4,0.4553]
[1761900464472,7.91543862,3840.5,3840.0,0.13]
[1761900464668,0.93611555,3840.6,3840.5,0.9315]
[1761900464874,1.02024966,3840.6,3840.5,0.9315]
[1761900465076,9.12013411,3840.6,3840.5,0.9315]
[1761900465278,9.03869662,3840.6,3840.5,0.9315]
[1761900466277,0.00269662,3840.6,3840.5,0.9315]
[1761900466774,3.2078,3841.5,3841.4,0.8015]
[1761900466972,6.0972241,3841.5,3841.4,0.8015]
[1761900467773,6.09961097,3841.5,3841.4,0.8015]
[1761900468177,12.32761097,3841.5,3841.4,0.8015]
[1761900468874,12.32761097,3841.5,3841.0,0.13]
[1761900469074,0.0814241,3841.4,3841.1,0.3462]
[1761900469379,3.21018687,3841.5,3841.4,0.5653]
[1761900469578,12.32661085,3841.5,3841.4,0.5653]
[1761900469781,12.32661085,3841.5,3841.4,0.8015]
[1761900470275,12.24518687,3841.5,3841.4,0.3462]
[1761900471476,12.24518687,3841.5,3841.4,0.5653]
[1761900472072,12.24518687,3841.5,3841.4,0.8015]
[1761900472278,12.32561022,3841.5,3841.4,0.8015]
[1761900474781,3.29161022,3841.5,3841.4,0.8015]
[1761900474976,3.21018687,3841.5,3841.4,0.8015]
[1761900475175,8.79818687,3841.5,3841.4,0.8015]
[1761900477484,5.59038687,3841.5,3841.4,0.8015]
[1761900479080,3.2078,3841.8,3841.7,0.8015]
[1761900479275,3.2078,3842.2,3842.1,0.8015]
[1761900479879,0.08140957,3842.2,3841.5,0.13]
[1761900480084,0.08140957,3842.1,3841.7,0.3462]
[1761900480383,3.21033291,3842.2,3841.8,0.3462]
[1761900480583,0.08141251,3842.1,3841.8,0.3462]
[1761900480784,3.21033291,3842.2,3841.8,0.3462]
[1761900480986,3.21033291,3842.2,3841.5,0.13223185]
[1761900480987,0.00253291,3842.2,3842.1,0.8015]
[1761900484284,1.86027275,3843.8,3843.5,0.3462]
[1761900484285,8.38091555,3843.6,3843.5,0.3462]
[1761900484490,7.52618826,3843.6,3843.5,0.4762]
[1761900484789,7.4448,3843.6,3843.5,0.6953]
[1761900485187,3.20995429,3843.6,3843.5,0.9315]
[1761900485481,9.04115429,3843.6,3843.5,0.9315]
[1761900485893,0.00215429,3843.6,3843.5,0.9315]
[1761900488987,3.2078,3844.5,3844.4,0.2362]
[1761900489299,12.2478,3844.5,3844.4,0.8015]
[1761900489694,3.2078,3844.5,3844.4,0.8015]
[1761900489898,0.025,3844.7,3844.6,0.8015]
[1761900490291,0.02769183,3844.7,3844.6,0.8015]
[1761900493306,0.10904624,3844.7,3844.4,0.00332724]
[1761900493510,3.2078,3844.5,3844.4,0.56882724]
[1761900493711,0.96380738,3844.7,3844.6,0.5655]
[1761900493913,10.08916608,3844.7,3844.6,0.3443]
[1761900494210,10.09016608,3844.7,3844.6,0.3443]
[1761900494411,1.04516608,3844.7,3844.6,0.5655]
[1761900494613,0.02769183,3844.7,3844.6,0.7863]
[1761900495213,0.1090446,3844.7,3844.6,0.3443]
[1761900496613,0.1090446,3844.7,3844.4,0.00332724]
[1761900496810,3.2078,3844.5,3844.4,0.00332724]
[1761900497010,3.28915277,3844.5,3844.4,0.34762724]
[1761900498218,4.21625446,3844.5,3844.4,0.00332724]
[1761900498516,3.28915277,3844.5,3844.4,0.00332724]
[1761900498914,12.69059683,3844.5,3844.4,0.00332724]
[1761900499319,11.28915277,3844.5,3844.4,0.00332724]
[1761900499616,3.28915277,3844.5,3844.4,0.00332724]
[1761900503413,4.6809612,3844.5,3843.1,0.3237]
[1761900503719,3.2078,3843.5,3843.1,0.3237]
[1761900503910,9.13239076,3843.4,3843.1,0.3237]
[1761900504111,0.08139076,3843.3,3843.1,0.3237]
[1761900504512,0.08139076,3843.3,3843.1,0.00258931]
[1761900505020,0.92866604,3843.2,3843.1,0.00258931]
[1761900505216,1.0100568,3843.2,3843.1,0.00258931]
[1761900505515,8.08139076,3843.2,3842.2,0.3237]
[1761900505721,3.2078,3842.4,3842.2,0.3237]
[1761900506023,9.13339076,3842.3,3842.0,0.4589]
[1761900506211,0.08139076,3842.2,3842.1,0.3237]
[1761900506416,0.08139076,3842.2,3842.1,0.32629864]
[1761900508423,0.08139076,3842.2,3842.1,0.00259864]
[1761900508726,1.01111028,3842.2,3842.1,0.00259864]
[1761900508919,0.08139076,3842.2,3842.1,0.00259864]
[1761900509223,0.08139076,3842.2,3841.5,0.4589]
[1761900509422,3.2078,3841.7,3841.6,0.3237]
[1761900509724,12.34119076,3841.7,3841.6,0.3237]
[1761900510122,12.34745674,3841.7,3841.6,0.55115067]
[1761900511226,3.29145674,3841.7,3841.6,0.76755067]
[1761900511426,9.68745674,3841.7,3841.6,0.76755067]
[1761900512217,12.26606598,3841.7,3841.6,0.76755067]
[1761900516126,9.05826598,3841.7,3841.6,0.76755067]
[1761900516630,9.05726598,3841.7,3841.6,0.76755067]
[1761900517829,0.00226598,3841.7,3841.6,0.76755067]
[1761900518229,0.00226598,3841.7,3841.6,3.97535067]
[1761900518230,9.05426598,3841.7,3841.6,3.97535067]
[1761900518430,0.00226598,3841.7,3841.6,3.97535067]
[1761900519136,0.00226598,3841.7,3841.6,44.77535067]
[1761900521437,3.2078,3842.6,3842.5,0.9352]
[1761900521735,12.2588,3842.6,3842.5,0.9352]
[1761900522033,12.2578,3842.6,3842.5,0.9352]
[1761900522235,12.33920387,3842.6,3842.5,0.9352]
[1761900522435,12.34216076,3842.6,3842.5,0.9352]
[1761900522631,3.29216076,3842.6,3842.5,0.9352]
[1761900522937,12.26075689,3842.6,3842.5,0.9352]
[1761900523139,9.05295689,3842.6,3842.5,0.9352]
[1761900523434,0.00295689,3842.6,3842.5,0.9352]
[1761900524834,0.00295689,3842.6,3842.5,41.7352]
[1761900531137,0.00295689,3842.6,3842.5,44.943]
[1761900532146,0.08434733,3842.6,3842.5,44.943]
[1761900532337,0.00295689,3842.6,3842.5,44.943]
[1761900536338,0.92982569,3843.1,3843.0,0.2169]
[1761900536540,4.13762569,3843.4,3843.3,0.7901]
[1761900536736,13.26300725,3843.4,3843.3,0.7901]
[1761900536937,12.33318156,3843.4,3843.1,0.3415]
[1761900537132,1.01445322,3843.3,3843.1,0.7901]
[1761900537340,1.01445322,3843.3,3843.0,0.1373]
[1761900537341,0.00323751,3843.3,3843.2,0.2169]
[1761900537540,0.08462313,3843.3,3843.2,0.2169]
[1761900537942,0.08462313,3843.3,3843.2,0.7901]
[1761900538245,9.13362313,3843.3,3843.2,0.7901]
[1761900539943,9.13362313,3843.3,3843.2,0.3415]
[1761900541045,9.13362313,3843.3,3843.2,0.5584]
[1761900541340,0.08462313,3843.3,3843.2,0.7901]
[1761900541548,8.30823751,3843.3,3843.2,0.7901]
[1761900541736,0.93309101,3844.1,3843.9,0.4486]
[1761900542046,4.14089101,3844.3,3844.2,0.3415]
[1761900542246,13.09125612,3844.3,3844.2,0.7901]
[1761900542441,13.09125612,3844.3,3844.2,0.5584]
[1761900542841,13.09439006,3844.3,3844.2,0.5584]
[1761900543042,13.09439006,3844.3,3844.2,0.7901]
[1761900543342,12.34529905,3844.3,3844.2,0.7901]
[1761900543745,0.08449905,3844.3,3844.2,0.7901]
[1761900543946,0.00313394,3844.3,3844.2,0.7901]
[1761900544146,7.62013394,3844.3,3844.2,0.7901]
[1761900544348,7.70149119,3844.3,3844.2,0.7901]
[1761900545246,7.62013394,3844.3,3844.2,0.7901]
[1761900545441,0.00313394,3844.3,3844.2,0.7901]
[1761900547948,0.93309101,3845.0,3844.6,0.7901]
[1761900548152,3.25547732,3846.5,3844.5,0.1373]
[1761900548153,7.98,3845.5,3845.4,0.2169]
[1761900548353,8.06134344,3845.5,3845.4,0.2169]
[1761900548645,8.06134344,3845.5,3845.4,0.7901]
[1761900549042,8.06404672,3845.5,3845.4,0.79321416]
[1761900549247,7.98270328,3845.5,3845.4,0.79321416]
[1761900549646,11.19050328,3845.5,3845.4,0.79321416]
[1761900549847,11.27183875,3845.5,3845.4,0.79321416]
[1761900550250,7.98270328,3845.5,3845.4,0.34461416]
[1761900550552,0.00270328,3845.5,3845.4,0.79321416]
[1761900550754,9.06970328,3845.5,3845.4,0.79321416]
[1761900551951,0.00270328,3845.5,3845.4,0.79321416]
[1761900554047,3.2078,3845.9,3845.8,0.7763]
[1761900554252,1.85574457,3847.0,3846.7,0.7874]
[1761900554253,0.93309101,3846.8,3846.7,0.7874]
[1761900554552,7.39031975,3846.8,3846.7,0.7874]
[1761900555057,0.0838216,3846.8,3846.7,0.7874]
[1761900555252,7.7448216,3846.8,3846.7,0.7874]
[1761900555557,0.00250185,3846.8,3846.7,0.7874]
[1761900556555,9.09050185,3846.8,3846.7,0.7874]
[1761900557550,0.00250185,3846.8,3846.7,0.7874]
[1761900560352,3.2078,3847.9,3847.7,0.3528]
[1761900560551,3.13430012,3847.8,3847.7,0.3528]
[1761900560748,3.13430012,3847.8,3847.2,0.3528]
[1761900560959,3.2078,3847.5,3847.0,0.4953]
[1761900561253,0.08130012,3847.4,3847.1,0.3528]
[1761900563354,0.08130012,3847.4,3847.2,0.3528]
[1761900563854,0.08130012,3847.4,3847.3,0.3528]
[1761900564057,9.17230012,3847.4,3847.1,0.3528]
[1761900564257,0.08130012,3847.3,3847.1,0.3528]
[1761900565151,0.08130012,3847.3,3847.2,0.58]
[1761900565345,9.17130012,3847.3,3847.2,0.8156]
[1761900565550,9.17130728,3847.3,3847.2,0.3528]
[1761900565753,9.17130728,3847.3,3847.2,0.58]
[1761900566349,9.16930728,3847.3,3847.2,0.58]
[1761900566553,0.08130728,3847.3,3847.2,0.58]
[1761900566755,9.16930728,3847.3,3847.2,0.8156]
[1761900566960,9.16830728,3847.3,3847.2,0.8156]
[1761900567955,9.16730728,3847.3,3847.2,0.8156]
[1761900568156,10.10039829,3847.3,3847.0,0.1425]
[1761900568361,0.08130728,3847.2,3847.1,0.3528]
[1761900568558,0.0318,3847.1,3846.8,0.3528]
[1761900568757,0.0636,3846.6,3846.5,0.4903]
[1761900568956,9.1506,3846.6,3846.5,0.7175]
[1761900569155,10.15938556,3846.6,3846.5,0.7175]
[1761900569558,10.15938556,3846.6,3846.5,0.4903]
[1761900569857,10.15938556,3846.6,3846.5,0.9531]
[1761900570255,0.08130728,3846.6,3846.5,0.9531]
[1761900570655,0.95927828,3847.3,3847.0,0.4953]
[1761900570958,0.99107828,3847.3,3847.2,0.58]
[1761900571159,0.17670616,3847.3,3847.2,0.3528]
[1761900571362,10.62648545,3847.3,3847.2,0.8156]
[1761900571562,9.23190616,3847.3,3847.2,0.8156]
[1761900571765,9.26370616,3847.3,3847.2,0.3528]
[1761900571961,0.0954,3847.1,3847.0,0.4953]
[1761900572262,1.0739516,3847.1,3847.0,0.7225]
[1761900572463,1.0739516,3847.1,3847.0,0.4953]
[1761900572464,1.1057516,3847.1,3847.0,0.4953]
[1761900572659,0.0318,3846.8,3846.6,0.3528]
[1761900572862,9.23290616,3846.7,3846.6,0.58]
[1761900573459,9.23290616,3846.7,3846.6,0.8156]
[1761900573958,9.16930616,3846.7,3846.6,0.8156]
[1761900575065,0.08130616,3846.7,3846.6,0.8156]
[1761900575261,1.0103516,3846.7,3846.6,0.8156]
[1761900575566,9.16730616,3846.7,3846.6,0.8156]
[1761900575761,9.19910616,3846.7,3846.6,0.8156]
[1761900576166,10.1281516,3846.7,3846.6,0.8156]
[1761900577276,9.19910616,3846.7,3846.6,0.8156]
[1761900577777,9.23090616,3846.7,3846.6,0.8156]
[1761900577978,9.23090616,3846.7,3846.6,0.58]
[1761900579370,9.23090616,3846.7,3846.6,0.8156]
[1761900580982,0.08130616,3846.7,3846.6,0.8156]
[1761900581182,0.08130616,3846.7,3846.5,0.1375]
[1761900581183,9.081,3847.0,3846.9,0.8066]
[1761900581382,9.19430823,3847.0,3846.9,0.8066]
[1761900583286,11.0500528,3847.0,3846.9,0.8066]
[1761900583489,11.0820528,3847.0,3846.9,0.8066]
[1761900584482,0.5944113,3847.5,3847.4,0.8066]
[1761900584680,0.2384113,3847.5,3847.4,4.0144]
[1761900584881,0.5944113,3847.5,3847.4,44.8144]
[1761900585078,10.0527113,3847.5,3847.4,3.2078]
[1761900585389,1.40519422,3847.5,3847.4,4.0144]
[1761900585593,1.40519422,3847.5,3847.4,44.8144]
[1761900585887,0.0032113,3847.5,3847.4,4.0144]
[1761900586488,0.0032113,3847.5,3847.4,44.8144]
[1761900586886,0.9527113,3847.5,3847.4,44.8144]
[1761900587191,0.9527113,3847.5,3847.4,44.4648]
[1761900587689,0.9527113,3847.5,3847.4,3.2078]
[1761900588392,0.9527113,3847.5,3847.4,3.4434]
[1761900588984,0.9527113,3847.5,3847.4,3.2078]
[1761900590183,0.8129113,3847.5,3847.4,4.0144]
[1761900590388,11.31643284,3847.5,3847.4,4.0144]
[1761900590687,11.45623284,3847.5,3847.4,3.2078]
[1761900591190,10.0557113,3847.5,3847.4,3.2078]
[1761900591590,10.98934347,3847.5,3847.4,3.2078]
[1761900592296,10.0557113,3847.5,3847.4,3.2078]
[1761900593788,0.9527113,3847.5,3847.4,3.2078]
[1761900593992,10.0547113,3847.5,3847.4,3.2078]
[1761900594403,10.0557113,3847.5,3847.4,3.2078]
[1761900594895,10.0567113,3847.5,3847.4,3.2078]
[1761900595694,11.45516239,3847.5,3847.4,3.4434]
[1761900595895,11.45516239,3847.5,3847.4,3.793]
[1761900596096,11.45516239,3847.5,3847.4,3.4434]
[1761900596397,10.13601477,3847.5,3847.4,3.2078]
[1761900599501,10.13601642,3847.5,3847.4,3.2078]
[1761900601597,12.00330801,3847.5,3847.4,3.2078]
[1761900601803,10.13601642,3847.5,3847.4,3.2078]
[1761900602396,0.8097,3846.5,3846.4,0.8066]
[1761900602697,0.8097,3846.5,3846.0,0.1375]
[1761900602698,0.8097,3846.1,3846.0,0.2356]
[1761900602894,8.04601466,3846.1,3846.0,0.2356]
[1761900603298,8.04601466,3846.1,3846.0,0.5852]
[1761900603592,8.04601466,3846.1,3846.0,0.2356]
[1761900603795,8.04601466,3846.1,3846.0,0.5852]
[1761900603998,0.08131466,3846.1,3846.0,0.9393]
[1761900604395,6.54,3846.2,3846.1,0.3496]
[1761900604593,1.16909562,3846.7,3846.6,0.8066]
[1761900604800,10.56790886,3846.7,3846.6,0.8066]
[1761900605201,10.92390886,3846.7,3846.6,0.8066]
[1761900605703,9.41551324,3846.7,3846.6,0.8066]
[1761900606105,0.31651324,3846.7,3846.6,0.8066]
[1761900606304,9.37451324,3846.7,3846.6,0.8066]
[1761900607105,9.73051324,3846.7,3846.6,0.8066]
[1761900608207,0.8097,3846.4,3846.3,0.457]
[1761900608407,0.89101324,3846.4,3846.3,0.457]
[1761900608707,0.89101324,3846.4,3846.3,0.2356]
[1761900608907,0.8097,3846.1,3846.0,0.8066]
[1761900609207,9.99201324,3846.1,3846.0,0.8066]
[1761900609410,9.99201324,3846.1,3846.0,0.2356]
[1761900609703,9.99201324,3846.1,3846.0,0.5852]
[1761900609895,0.08131324,3846.1,3846.0,0.9393]
[1761900610097,0.93351506,3846.5,3846.4,0.8066]
[1761900610301,6.38903394,3846.5,3846.4,0.8066]
[1761900610509,5.81151888,3846.5,3846.4,0.8066]
[1761900611098,6.03001888,3846.5,3846.4,0.8066]
[1761900612813,6.16551888,3846.5,3846.4,0.457]
[1761900613003,6.16551888,3846.5,3846.4,0.7861]
[1761900613705,6.16551888,3846.5,3846.1,0.2382]
[1761900613706,0.7966,3846.2,3846.1,0.2382]
[1761900614007,0.87791888,3846.2,3846.1,0.5673]
[1761900614208,0.87791888,3846.2,3846.1,0.7851]
[1761900615704,0.7966,3845.8,3845.7,0.7851]
[1761900615910,0.8779247,3845.8,3845.7,0.7851]
[1761900620411,0.8779247,3845.8,3845.7,0.456]
[1761900620606,0.8779247,3845.8,3845.7,0.8001]
[1761900621109,0.8779247,3845.8,3845.7,0.456]
[1761900621317,0.8779247,3845.8,3845.7,0.2382]
[1761900621707,0.4519,3845.5,3845.4,0.22071416]
[1761900622013,9.9728247,3845.5,3845.4,0.44811416]
[1761900622510,9.9728247,3845.5,3845.4,0.79221416]
[1761900623322,10.1070247,3845.5,3845.4,0.79221416]
[1761900623716,9.9728247,3845.5,3845.4,0.79221416]
[1761900628124,9.9638247,3845.5,3845.4,0.79221416]
[1761900628621,10.0980247,3845.5,3845.4,0.00311416]
[1761900628825,11.03153976,3845.5,3845.4,0.00311416]
[1761900629022,10.0980247,3845.5,3845.4,0.00311416]
[1761900631626,0.7835,3844.6,3844.5,0.7891]
[1761900631828,0.5861,3845.0,3844.9,0.7891]
[1761900632019,9.76244833,3845.0,3844.9,0.7891]
[1761900632416,10.09404833,3845.0,3844.9,0.7891]
[1761900632729,10.09622912,3845.0,3844.9,0.44781551]
[1761900633027,10.09622912,3845.0,3844.9,0.22041551]
[1761900633325,10.09622912,3845.0,3844.9,0.00281551]
[1761900635928,10.09622912,3845.0,3844.9,0.22041551]
[1761900636125,10.09422912,3845.0,3844.9,0.79191551]
[1761900638126,0.08352912,3845.0,3844.9,0.79191551]
[1761900638429,0.00218079,3845.0,3844.9,0.79191551]
[1761900639029,0.78568079,3845.0,3844.9,0.79191551]
[1761900639233,1.00122342,3845.0,3844.9,0.22041551]
[1761900639920,1.00122342,3845.0,3844.9,0.00281551]
[1761900643232,1.00122342,3845.0,3844.9,0.78431551]
[1761900643635,1.00122342,3845.0,3844.9,0.22041551]
[1761900644833,1.00122342,3845.0,3844.9,0.00281551]
[1761900648131,1.00122342,3845.0,3844.9,0.22301551]
[1761900649036,1.00122342,3845.0,3844.9,0.00281551]
[1761900651639,0.86702342,3845.0,3844.9,0.78691551]
[1761900651839,9.94602342,3845.0,3844.9,0.78691551]
[1761900652236,0.08352342,3845.0,3844.9,0.78691551]
[1761900652639,0.00218079,3845.0,3844.9,0.78691551]
[1761900653636,0.81188079,3845.0,3844.9,0.78691551]
[1761900653841,1.02551747,3845.0,3844.9,0.78691551]
[1761900655141,1.02551747,3845.0,3844.9,0.00281551]
[1761900655438,1.02551747,3845.0,3844.9,0.22301551]
[1761900655639,1.02551747,3845.0,3844.9,0.56451551]
[1761900656138,1.02551747,3845.0,3844.9,0.22301551]
[1761900656342,1.02551747,3845.0,3844.9,0.00281551]
[1761900656544,1.95926594,3845.0,3844.9,0.00281551]
[1761900656742,1.02551747,3845.0,3844.9,0.00281551]
[1761900657441,2.42614018,3845.0,3844.9,0.00281551]
[1761900657646,1.02551747,3845.0,3844.9,0.00281551]
[1761900659941,2.42923028,3845.0,3844.9,0.00281551]
[1761900660249,9.45523028,3845.0,3844.9,0.22301551]
[1761900660434,2.42923028,3845.0,3844.9,0.78691551]
[1761900660743,8.58051747,3845.0,3844.9,0.78691551]
[1761900661642,1.02551747,3845.0,3844.9,0.78691551]
[1761900661842,8.26021747,3845.0,3844.9,0.78691551]
[1761900662140,0.32071747,3845.0,3844.9,0.78691551]
[1761900662442,7.91921747,3845.0,3844.9,0.78691551]
[1761900663240,8.05151747,3845.0,3844.9,0.00281551]
[1761900663444,8.05151747,3845.0,3844.9,0.22301551]
[1761900663845,8.98719466,3845.0,3844.9,0.22301551]
[1761900664146,8.98719466,3845.0,3844.9,0.00281551]
[1761900664147,8.05151747,3845.0,3844.9,0.00281551]
[1761900664842,8.05151747,3845.0,3844.9,0.22301551]
[1761900665048,9.96921747,3845.0,3844.9,0.78691551]
[1761900665242,9.62181747,3845.0,3844.9,0.78691551]
[1761900665436,0.54581747,3845.0,3844.9,0.78691551]
[1761900665640,0.32071747,3845.0,3844.9,0.78691551]
[1761900665849,5.73471747,3845.0,3844.9,0.78691551]
[1761900666146,9.39671747,3845.0,3844.9,0.78691551]
[1761900666750,0.32071747,3845.0,3844.9,0.78691551]
[1761900666936,0.89321747,3845.0,3844.9,0.78691551]
[1761900667348,1.02551747,3845.0,3844.9,0.22301551]
[1761900668452,0.08351747,3845.0,3844.9,0.78691551]
[1761900669948,0.08351747,3845.0,3844.9,41.58691551]
[1761900670539,0.08351747,3845.0,3844.9,42.28541422]
[1761900671647,0.08351747,3845.0,3844.9,41.58691551]
[1761900672446,0.00218079,3845.0,3844.9,41.58691551]
[1761900674152,0.93569139,3845.6,3845.5,0.8545]
[1761900674341,9.6386,3845.9,3845.8,0.445]
[1761900674548,0.3184229,3845.9,3845.8,0.445]
[1761900674845,0.3184229,3845.9,3845.8,0.7781]
[1761900675451,0.32066159,3845.9,3845.8,0.7781]
[1761900676045,0.87056159,3845.9,3845.8,0.7781]
[1761900676847,0.87056159,3845.9,3845.8,0.2282]
[1761900677047,0.87056159,3845.9,3845.5,0.0764]
[1761900677048,0.2337,3845.6,3845.5,0.7719]
[1761900677351,0.4526,3845.6,3845.5,0.7719]
[1761900677551,0.8086,3845.6,3845.5,0.7719]
[1761900678041,0.5749,3845.6,3845.5,0.902]
[1761900678247,0.00223869,3845.9,3845.5,0.902]
[1761900678248,4.46483869,3845.9,3845.8,0.7719]
[1761900678453,4.54616446,3845.9,3845.8,0.2201]
[1761900678954,0.8086,3845.6,3845.5,0.7719]
[1761900679547,0.8086,3845.6,3845.5,0.4403]
[1761900679747,0.8086,3845.6,3845.2,0.3316]
[1761900679748,0.8086,3845.3,3845.2,0.5517]
[1761900679946,0.8086,3845.3,3845.2,0.2201]
[1761900680144,0.8086,3845.0,3844.9,0.77471551]
[1761900680555,0.9452,3845.0,3844.9,41.57471551]
[1761900680952,0.9452,3845.0,3844.9,0.44311551]
[1761900681153,1.02654138,3845.0,3844.9,0.00281551]
[1761900684759,10.11654138,3845.0,3844.9,0.00281551]
[1761900688356,11.05223277,3845.0,3844.9,0.00281551]
[1761900691667,0.9452,3844.0,3843.9,0.2201]
[1761900691868,10.0282,3844.0,3843.9,0.7719]
[1761900692067,9.8916,3844.0,3843.9,0.7719]
[1761900692470,9.8916,3844.0,3843.9,0.77472301]
[1761900694967,0.8086,3844.0,3843.9,0.77472301]
[1761900695164,9.8896,3844.0,3843.9,0.77472301]